Cogmind - Beta 12 @@@ ROGUE MODE // 2024.01.15 @ 00:24:43 Player: sasha Result: Destroyed by Y-45 Defender with Beam Rifle Performance ------------- Evolutions (2) 1000 Regions Visited (3) 600 Robots Destroyed (36) 180 Value Destroyed (793) 793 Prototype IDs (1) 20 Alien Tech Used (0) 0 Bonus (264) 264 TOTAL SCORE: 2857 Bonus ------- Pacifist 200 High Alert Combat Kills 64 Cogmind --------- Core Integrity 0/550 Matter 242/300 Energy 98/100 System Corruption 0% Temperature Cool (9) Movement Core (50) Location -8/Materials Parts ------- > --- POWER (1) -------- (None) > --- PROPULSION (4) --- (None) > --- UTILITY (4) ------ Advanced Visual Processing Unit Improved Targeting Computer Improved Targeting Computer > --- WEAPON (2) ------- (None) > --- INVENTORY (5) ---- Improved Heat Sink High-capacity Battery (250) Advanced Weight Redist. System Improved Assault Rifle Assault Cannon Peak State ------------ > --- POWER ------------ Light Deuterium Engine > --- PROPULSION ------- Airjet Flight Unit Flight Unit > --- UTILITY ---------- Advanced Visual Processing Unit Targeting Computer Improved Targeting Computer Improved Targeting Computer > --- WEAPON ----------- Particle Gun Assault Cannon > --- INVENTORY -------- Improved Heat Sink High-capacity Battery Advanced Weight Redist. System Heavy Laser Assault Cannon [Rating: 22] Favorites ----------- Power Light Ion Engine Engine Light Ion Engine Propulsion VSS Leg Leg VSS Leg Wheel Armored Wheel Hover Unit Airjet Flight Unit Flight Unit Utility Targeting Computer Storage Large Storage Unit Processor Targeting Computer Weapon Heavy Hammer Energy Gun Shock Rifle Ballistic Gun High-powered Shotgun Ballistic Cannon Assault Cannon Impact Weapon Heavy Hammer Special Melee Weapon Datajack Build | -11 -10 -9 -8 ------- Run | Jun Mat Mat Mat Slots Evolved 4 | . . 2 2 Power . | . . . . Propulsion 2 | . . 1 1 Utility 2 | . . 1 1 Weapon . | . . . . Parts Attached 33 | . 1 13 19 Power 3 | . . . 3 Engine 3 | . . . 3 Core . | . . . . Reactor . | . . . . Propulsion 10 | . . 5 5 Treads . | . . . . Leg 3 | . . 3 . Wheel 2 | . . 2 . Hover 1 | . . . 1 Flight 4 | . . . 4 Utility 8 | . . 5 3 Device . | . . . . Storage 1 | . . 1 . Processor 7 | . . 4 3 Hackware . | . . . . Protection . | . . . . Artifact . | . . . . Weapon 12 | . 1 3 8 Energy Gun 3 | . . 2 1 Energy Cannon . | . . . . Ballistic Gun 3 | . 1 . 2 Ballistic Cannon 3 | . . . 3 Launcher . | . . . . Special Weapon . | . . . . Impact Weapon 2 | . . 1 1 Slashing Weapon . | . . . . Piercing Weapon . | . . . . Special Melee Weapon 1 | . . . 1 Unidentified Prototypes 1 | . . . 1 Parts Lost 14 | . . 2 12 Power 2 | . . . 2 Propulsion 5 | . . . 5 Utility 2 | . . 1 1 Weapon 5 | . . 1 4 Highest Loss Streak 4 | . . 1 4 To Critical Strikes . | . . . . Average Slot Usage (%) 58 | . 2 71 66 Leg 12 | . . 22 6 Wheel 1 | . . . 3 Flight 3 | . . . 7 Storage 4 | . . 7 3 Processor 22 | . . 23 30 Energy Gun 4 | . . 7 2 Ballistic Cannon 1 | . . . 2 Impact Weapon 6 | . . 10 4 Naked Turns 210 | . 190 20 . Heaviest Build 26 | . 1 26 26 Greatest Support 36 | 3 3 36 24 Greatest Overweight (x) 7 | . . 2 7 Average Overweight (x) . | . . . . Largest Inventory Capacity 15 | 5 5 15 15 Average Capacity 9 | 5 5 12 8 Most Carried 8 | . 4 8 7 Average Carried 5 | . 2 6 4 Final Capacity 15 | 5 5 15 5 Final Carried 5 | . 3 5 5 Class Distribution -------------------- 100% | Mutant Dominant Class ---------------- Mutant | -10/Materials Mutant | -9/Materials Mutant | -8/Materials Resources | -11 -10 -9 -8 ----------- Run | Jun Mat Mat Mat Matter Collected 534 | . 128 187 219 Remotely . | . . . . Salvage Created 1027 | . . 433 594 Parts 39 | . . 12 27 Haulers Intercepted 1 | . . 1 . Recyclers Shooed . | . . . . Parts Field Recycled . | . . . . Retrieved Matter . | . . . . Parts Self-Destructed . | . . . . Prevented . | . . . . Kills | -11 -10 -9 -8 ------- Run | Jun Mat Mat Mat Combat Hostiles Destroyed 28 | . . 11 17 Melee 13 | . . 5 8 Cannons 8 | . . . 8 Classes Destroyed 9 | . . 8 1 Builder 2 | . . 1 1 Hauler 1 | . . 1 . Recycler 2 | . . 1 1 Mechanic 1 | . . 1 . Operator 1 | . . 1 . Watcher 1 | . . . 1 Swarmer 16 | . . 8 8 Grunt 6 | . . 1 5 Sentry 6 | . . 2 4 Best Kill Streak 10 | . . 5 10 Combat Bots Only 9 | . . 4 9 Max Kills in Single Turn 1 | . . 1 1 Gunslinging . | . . . . Exploded . | . . . . Melee 1 | . . 1 1 Uniques/NPCs Destroyed . | . . . . Combat | -11 -10 -9 -8 -------- Run | Jun Mat Mat Mat Damage Taken 2061 | . . 582 1479 Core 897 | . . 335 562 Absorbed by Shields . | . . . . Core Remaining (%) 72 | 100 100 16 . Volleys Fired 33 | . . 3 30 Largest 2 | . . 1 2 Hottest 109 | . . 50 109 Shots Fired 37 | . . 3 34 Gun 14 | . . 3 11 Cannon 23 | . . . 23 Launcher . | . . . . Special . | . . . . Kinetic 26 | . . . 26 Thermal 2 | . . . 2 Explosive . | . . . . Electromagnetic 9 | . . 3 6 Robot Hit Streak 14 | . . 3 14 Robot Miss Streak 1 | . . . 1 Penetration Max . | . . . . Secondary Targets . | . . . . Shots Hit Robots 91 | . . 32 59 Core Hits 24 | . . 5 19 Critical Kills 1 | . . 1 . Critical Parts Destroyed 8 | . . 4 4 Critical Strikes 10 | . . 6 4 Smash 10 | . . 6 4 Melee Attacks 73 | . . 35 38 Impact 71 | . . 35 36 Slashing . | . . . . Piercing . | . . . . Sneak Attacks 8 | . . 5 3 Combat Hostiles . | . . . . Follow-up Attacks . | . . . . Damage Inflicted 2867 | . . 1304 1563 Guns 212 | . . 79 133 Cannons 512 | . . . 512 Explosions 35 | . . 35 . Melee 2108 | . . 1190 918 Ramming . | . . . . Kinetic 557 | . . . 557 Thermal 49 | . . 35 14 Explosive . | . . . . Electromagnetic 153 | . . 79 74 Impact 2108 | . . 1190 918 Slashing . | . . . . Piercing . | . . . . Highest Corruption . | . . . . Average Corruption . | . . . . Corruption Purged . | . . . . Corruption Blocked . | . . . . Overload Shots . | . . . . Overflow Damage 718 | . . 444 274 Projectiles 25 | . . . 25 Explosions . | . . . . Melee 693 | . . 444 249 Knockbacks 20 | . . 6 14 Impact 8 | . . 6 2 Kinetic 8 | . . . 8 Secondary 4 | . . . 4 Self-Inflicted Damage . | . . . . Shots . | . . . . Rammed . | . . . . Targets Rammed . | . . . . Kicked . | . . . . Crushed . | . . . . Highest Temperature 23 | . . . 23 Average Temperature 9 | . . . 9 Received Heat Transfer 696 | . . 135 561 Siege Activations . | . . . . Robots Corrupted . | . . . . Combat Hostiles . | . . . . Parts Fried 18 | . . 10 8 Impact Corruptions 26 | . . 17 9 Robots Melted . | . . . . Combat Hostiles . | . . . . Parts Melted . | . . . . Heat Transferred 87 | . . 50 37 Parts Sabotaged . | . . . . Parts Stolen . | . . . . Parts Stripped . | . . . . Power Chain Reactions 1 | . . 1 . Missiles Intercepted . | . . . . Alert | -11 -10 -9 -8 ------- Run | Jun Mat Mat Mat Peak Influence 623 | . 75 357 623 Initial 104 | . . 31 104 Average 234 | . 32 211 356 Maximum Alert Level 2 | . . 1 2 Low Security (%) 40 | 100 100 30 23 Level 1 42 | . . 69 31 Level 2 17 | . . . 45 Level 3 . | . . . . Level 4 . | . . . . Level 5 . | . . . . High Security . | . . . . Max Security . | . . . . Squads Dispatched 2 | . 1 . 1 Investigation . | . . . . Extermination . | . . . . Reinforcement 2 | . 1 . 1 Assault . | . . . . Garrison . | . . . . Intercept . | . . . . Searches Triggered . | . . . . Construction Impeded . | . . . . Haulers Reinforced . | . . . . Active Scanning Responses . | . . . . Cargo Convoy Interrupts . | . . . . Stealth | -11 -10 -9 -8 --------- Run | Jun Mat Mat Mat Distress Signals 1 | . . . 1 Communications Jammed . | . . . . Distress Signals . | . . . . Times Spotted 52 | . 4 16 32 Peak Tracking Total 8 | . 4 4 8 Tactical Retreats 9 | . 1 3 5 Traps | -11 -10 -9 -8 ------- Run | Jun Mat Mat Mat Traps Triggered 1 | . 1 . . Indirectly . | . . . . Trap Hack Attempts . | . . . . Triggered . | . . . . Disarmed . | . . . . Reprogrammed . | . . . . Reused . | . . . . Traps Extracted . | . . . . Installed . | . . . . Triggered . | . . . . Machines | -11 -10 -9 -8 ---------- Run | Jun Mat Mat Mat Machines Disabled . | . . . . Max in Single Turn . | . . . . Machines Repaired . | . . . . Machines Sabotaged . | . . . . Overloaded Fab Kills . | . . . . Hacking | -11 -10 -9 -8 --------- Run | Jun Mat Mat Mat Machines Accessed 1 | . . . 1 Terminals 1 | . . . 1 Fabricators . | . . . . Repair Stations . | . . . . Recycling Units . | . . . . Scanalyzers . | . . . . Garrison Access . | . . . . Total Hacks 1 | . . . 1 Successful 1 | . . . 1 Failed . | . . . . Catastrophic . | . . . . Database Lockouts . | . . . . Manual . | . . . . Terminals 1 | . . . 1 Fabricators . | . . . . Repair Stations . | . . . . Recycling Units . | . . . . Scanalyzers . | . . . . Garrison Access . | . . . . Terminal Hacks 1 | . . . 1 Robot Analysis 1 | . . . 1 Fabricator Hacks . | . . . . Repair Station Hacks . | . . . . Recycling Unit Hacks . | . . . . Scanalyzer . | . . . . Garrison Access Hacks . | . . . . Unauthorized Hacks . | . . . . Terminals . | . . . . Fabricators . | . . . . Repair Stations . | . . . . Recycling Units . | . . . . Scanalyzers . | . . . . Garrison Access . | . . . . Data Cores Recovered 1 | . . 1 . Used . | . . . . Hacking Detections . | . . . . Full Trace Events . | . . . . Feedback Events . | . . . . Feedback Blocked . | . . . . Robot Schematics Acquired . | . . . . Robots Built . | . . . . Authchips . | . . . . Time . | . . . . Total Robot Build Rating . | . . . . Part Schematics Acquired . | . . . . Parts Built . | . . . . Authchips . | . . . . Time . | . . . . Total Part Build Rating . | . . . . Parts Repaired . | . . . . Time . | . . . . Parts Recycled . | . . . . Recycled Matter . | . . . . Retrieved Matter . | . . . . Retrieved Components . | . . . . Parts Scanalyzed . | . . . . Part Schematics Acquired . | . . . . Parts Damaged . | . . . . Bothacking | -11 -10 -9 -8 ------------ Run | Jun Mat Mat Mat Used RIF Installer . | . . . . Robots Hacked 1 | . . . 1 Non-combat 1 | . . . 1 Combat . | . . . . Robot Hacks Applied 2 | . . . 2 no_distress 1 | . . . 1 find_recycling 1 | . . . 1 Relay Couplers Released . | . . . . Fabnet Peak Effective % . | . . . . Robots Rewired . | . . . . Allies Hacked . | . . . . Hacks Repelled . | . . . . Allies | -11 -10 -9 -8 -------- Run | Jun Mat Mat Mat Total Allies . | . . . . Largest Group . | . . . . Highest-Rated Group . | . . . . Highest-Rated Ally . | . . . . Total Orders . | . . . . Ally Attacks . | . . . . Total Damage . | . . . . Kills . | . . . . Allies Corrupted . | . . . . Allies Melted . | . . . . Intel | -11 -10 -9 -8 ------- Run | Jun Mat Mat Mat Robot Analysis Total 1 | . . . 1 Derelict Logs Recovered . | . . . . Drone Launches . | . . . . Drone Recoveries . | . . . . Exploration | -11 -10 -9 -8 ------------- Run | Jun Mat Mat Mat Turns Passed 1376 | 10 234 613 519 Spaces Moved 1080 | 20 277 361 422 Core 532 | 20 277 132 103 Treads . | . . . . Legs 193 | . . 183 10 Wheels 79 | . . 46 33 Hover 4 | . . . 4 Flight 272 | . . . 272 Fastest Speed 37 | 50 50 50 37 Average Speed 74 | 50 50 117 54 Slowest Speed 400 | 50 50 270 400 Overloaded Moves . | . . . . Propulsion Burnouts . | . . . . Robots Hopped 2 | . . . 2 Cave-ins Triggered . | . . . . Exploration Rate (%) 32 | 4 53 35 38 Regions Visited 3 Branch Regions . Pre-discovered Areas . | . . . . Known Exits Taken . | . . . . Unknown Exits Taken 3 | 1 1 1 . Scrap Searched . | . . . . Spaces Dug 2 | . . . 2 Terrain Destroyed 8 | . . 5 3 Melee 1 | . . . 1 Projectile 2 | . . . 2 AOE 5 | . . 5 . Terrain Rammed . | . . . . Walls Destroyed . | . . . . Machines Disabled . | . . . . Actions | -11 -10 -9 -8 --------- Run | Jun Mat Mat Mat Total 1489 | 19 371 486 613 Wait 228 | . 90 56 82 Move 1073 | 19 276 360 418 Hop 2 | . . . 2 Pick Up 31 | . 4 14 13 Fast Attach 9 | . . 4 5 Attach 19 | . 1 7 11 Detach 1 | . . . 1 Swap 5 | . . 2 3 Drop 15 | . . 5 10 Fire 33 | . . 3 30 Melee 73 | . . 35 38 Ram . | . . . . Kick . | . . . . Crush . | . . . . Escape Stasis . | . . . . Rewire . | . . . . Trap . | . . . . Miscellaneous . | . . . . Route ------- -11/Junkyard -10/Materials (discovered 3 exits: [*Mat] / [*Min x2]) -9/Materials -8/Materials History --------- Turn | Location | Event 2 | -11/Junkyard | Met Revision 17 3 | -11/Junkyard | Discovered new exit (range 15) 11 | -11/Junkyard | Entered Materials 38 | -10/Materials | Discovered new exit (range 9) 177 | -10/Materials | Discovered new exit (range 16) 235 | -10/Materials | Discovered new exit (range 7) 245 | -10/Materials | Entered another Materials area 245 | -9/Materials | Evolved 2 slots: Propulsion x1, Utility x1 302 | -9/Materials | Build established: Mutant 358 | -9/Materials | Core integrity fell below 50% 731 | -9/Materials | Core integrity fell below 20% 846 | -9/Materials | Discovered new exit (range 11) 858 | -9/Materials | Entered another Materials area 858 | -8/Materials | Evolved 2 slots: Propulsion x1, Utility x1 1157 | -8/Materials | Core integrity fell below 50% 1185 | -8/Materials | Lost 4 parts (2n2w) 1207 | -8/Materials | Destroyed 9 combat bots 1333 | -8/Materials | Core integrity fell below 20% 1363 | -8/Materials | Lost 4 parts (1p2n1u) 1377 | -8/Materials | Destroyed by Y-45 Defender with Beam Rifle Last Messages --------------- 01327_ Flight Unit destroyed. 01328_ K-01 Serf collects debris. 01329_ K-01 Serf cleans the Terminal. 01329_ T-07 Excavator is excavating. 01330_ Acquired Prototype Ballistic Gun. 01330_ Critical hit (Burn: +37). 01331_ Dropped Hpw. Shotgun. 01331_ Dropped Enh. Autogun. 01332_ Fusion Modulator explodes. 01332_ Nuclear Reactor explodes. 01332_ W-25 Informer destroyed. 01332_ Terminal disabled. 01332_ Targeting Computer destroyed. 01332_ Lgt. Deuterium Engine destroyed. 01332_ Flight Unit destroyed. 01332_ K-01 Serf collects debris. 01332_ U-05 Engineer lays Concrete. 01334_ M-13 Machinist repairs W-25 Informer. 01335_ U-05 Engineer lays Concrete. 01335_ K-01 Serf collects debris. Map ----- +----------------------------------------------------+ | ??????????#############################% | | ??????????# | | ??????????# | | ??????????# % | | ??????????#########################+### | | ?????????????????????????????????# % ## | | ?????????????????????????????????# "## | | ?????????????????????????????????# "## | | ?????????????????????????????????# "## | | ?????????????????????????????????# T## | | ?????????????????????????????????# "## | | ?????????????????????????????????# "## | | ?????????????????????????????????# "# | | ????????????####?????????????????# # | | ????????????? ?????????????????###### | | ??????????????# ###???????????????????# | | ??????????????# #??????#######??????# | | ??????????????# ###+##?# ######### | | ??????????????# ### | | ??????????????# | | ??????????????+ "T" Y## | | ??????????????# ## ##+###### | | ??????????????# ####+### ???? | | ???????########] #? # #??? | | ???????# # !! # # #??? | | ???????# #@ !! ! #"" ! # #??? | | ???????# + !] #"T # #??? | | ???????# # #"" # #??? | | ???????# # # # #??? | | ???????# # #####+########## #??? | | ???????######## # ! [ #?# #??? | | ??????????????# # #?######??? | | ??????????????# #] " """"" #?????????? | | ??????????????# # """"""""" #?????????? | | ??????????????# # """ """ #?????????? | | ?????????????? ##############?????????? | | ??????????????###??????????????????????? | | ???????????????????????????????????????? | | ???????????????????????????????????????? | | ???????????????????????????????????????? | | ???????????????????????????????????????? | | ???????????????????????????????????????? | | ???????????????????????????????????????? | | ???????????????????????????????????????? | | ???????????????????????????????????????? | | ???????????????????????????????????????? | | ???????????????????????????????????????? | | ???????????????????????????????????????? | | ???????????????????????????????????????? | | ???????????????????????????????????????? | +----------------------------------------------------+ Best States ------------- Heat Dissipation 31 Energy Generation 14 Energy Capacity 140 Matter Stores 300 Matter Capacity 300 Sight Range 20 Terrain Scan Density 10 Evasion (%) 62 Targeting Accuracy 17 Item Schematics ----------------- None Robot Schematics ------------------ None Fabricated ------------ Nothing Alien Tech Used ----------------- None Achievements -------------- None Challenges ------------ None Game ------ Seed TacticalSapperBlade Manual? 0 Play Time 00:18:11 Cumulative 78.6 hours Start 2024.01.14 @ 19:07:31 End 2024.01.15 @ 00:24:43 Sessions 3 Manual Loads 0 Difficulty Rogue Special Mode None Game No. 92 Rogue 92 Adventurer 0 Explorer 0 Win Type - Total 0 Types 0/0/0/0/0/0/0/0/0 Lore% 34 Gallery% 43 Achievement% 36 Wizard Run 0 Options --------- ASCII 0 Keyboard 0 Movement Mouse Keybinds 0 Fullscreen 2 Font 24/Smallcaps Map View 76x50 Tactical HUD 1 Map Filters NONE Filters NONE Steam 1 RUN: 9ea1daa4-f25d-45c9-90d3-5ec967947533